bitfinex-derivatives/quotes_BTCF0:USTF0_20250822
["timestamp","ask_amount","ask_price","bid_price","bid_amount"]
[1755870783034,1.03250862,112640.0,112610.0,0.06791]
[1755870783248,0.01821,112620.0,112610.0,0.06791]
[1755870783432,0.01821,112620.0,112610.0,0.09068]
[1755870783734,0.93781,112630.0,112620.0,0.11068]
[1755870784039,0.68834547,112630.0,112620.0,0.07868]
[1755870784334,0.68834547,112630.0,112620.0,0.11068]
[1755870784530,0.00562,112630.0,112620.0,0.36068]
[1755870784726,1.46861238,112640.0,112630.0,0.11068]
[1755870784925,1.63874785,112640.0,112630.0,0.11068]
[1755870785130,1.63992785,112640.0,112630.0,0.03591]
[1755870785325,0.96779238,112640.0,112630.0,0.03591]
[1755870785631,0.01821,112630.0,112620.0,0.09068]
[1755870785830,0.96561238,112640.0,112630.0,0.11068]
[1755870786035,0.04505238,112640.0,112630.0,0.11068]
[1755870786234,0.96453238,112640.0,112630.0,0.11068]
[1755870786435,0.02584238,112640.0,112630.0,0.11088]
[1755870786630,0.02784238,112640.0,112630.0,0.11088]
[1755870786831,0.04043238,112640.0,112630.0,0.11088]
[1755870787136,0.02784238,112640.0,112630.0,0.11088]
[1755870787337,0.04605238,112640.0,112630.0,0.11088]
[1755870787534,0.71618785,112640.0,112630.0,0.11088]
[1755870787735,0.06502161,112640.0,112630.0,0.11088]
[1755870787935,0.04681161,112640.0,112630.0,0.11088]
[1755870788332,0.05940161,112640.0,112630.0,0.11088]
[1755870788537,0.06502161,112640.0,112630.0,0.11088]
[1755870788740,0.04681161,112640.0,112630.0,0.11088]
[1755870789031,0.04681161,112640.0,112630.0,0.36088]
[1755870789032,0.02296923,112640.0,112630.0,0.36088]
[1755870789434,0.02296923,112640.0,112630.0,1.12061377]
[1755870789838,0.02196923,112640.0,112630.0,1.03181547]
[1755870790229,0.02196923,112640.0,112630.0,1.03101547]
[1755870790432,0.02396923,112640.0,112630.0,1.03101547]
[1755870790628,0.02372235,112660.0,112630.0,1.14028327]
[1755870790831,0.03343,112670.0,112660.0,0.11068]
[1755870791035,0.98853105,112680.0,112670.0,0.08791]
[1755870791241,1.70976652,112680.0,112670.0,0.11088]
[1755870791430,1.64609547,112680.0,112670.0,0.11088]
[1755870791836,1.73348055,112680.0,112670.0,0.03611]
[1755870792044,1.73348055,112680.0,112670.0,0.09088]
[1755870792242,1.73348055,112680.0,112670.0,0.05888]
[1755870792443,1.73348055,112680.0,112670.0,0.03611]
[1755870792632,1.74166055,112680.0,112670.0,0.03611]
[1755870793642,1.74566055,112680.0,112670.0,0.03611]
[1755870794641,1.75955964,112690.0,112680.0,0.11068]
[1755870794642,0.98826651,112690.0,112680.0,0.11068]
[1755870794840,0.08569651,112690.0,112680.0,0.11088]
[1755870795045,0.02963177,112700.0,112690.0,0.08791]
[1755870795241,0.02963177,112700.0,112690.0,0.11088]
[1755870795440,0.04602177,112700.0,112690.0,0.11088]
[1755870795939,0.11187948,112740.0,112690.0,0.32888]
[1755870796145,0.11187948,112740.0,112730.0,0.78161547]
[1755870796340,0.01639,112770.0,112760.0,0.06791]
[1755870796541,0.99853,112770.0,112760.0,0.00291106]
[1755870796743,0.99853,112770.0,112760.0,0.11591052]
[1755870797039,1.66866547,112770.0,112760.0,0.11591052]
[1755870797444,1.91866547,112770.0,112760.0,0.11591052]
[1755870797742,0.02294,112750.0,112730.0,0.02166]
[1755870798046,0.04587,112750.0,112740.0,0.16071052]
[1755870798346,0.02294,112750.0,112740.0,0.0448]
[1755870798535,0.02294,112750.0,112740.0,0.44472052]
[1755870798943,0.02294,112750.0,112740.0,0.48017052]
[1755870799139,1.92295547,112750.0,112740.0,0.19616052]
[1755870799344,1.00423547,112750.0,112740.0,0.17750052]
[1755870799541,0.9448,112760.0,112740.0,0.41391052]
[1755870799844,0.0843,112760.0,112750.0,0.11591052]
[1755870800048,1.67307547,112760.0,112750.0,0.11611052]
[1755870800347,1.77567817,112760.0,112750.0,0.0002]
[1755870800841,2.02567817,112760.0,112750.0,0.0002]
[1755870801239,1.60827817,112760.0,112750.0,0.0002]
[1755870801435,1.60827817,112760.0,112750.0,0.0928]
[1755870801635,1.50543547,112760.0,112750.0,0.23037052]
[1755870801843,1.44245,112760.0,112750.0,0.23037052]
[1755870802042,1.46539,112760.0,112750.0,0.23037052]
[1755870802244,1.46827,112760.0,112750.0,0.23037052]
[1755870802446,1.46827,112760.0,112750.0,0.23337052]
[1755870802643,0.0012,112760.0,112750.0,0.90350599]
[1755870802942,0.71980547,112760.0,112750.0,0.48037051]
[1755870803142,1.00789547,112760.0,112750.0,0.11891052]
[1755870803340,1.00889547,112760.0,112750.0,0.11891052]
[1755870803540,1.92777547,112760.0,112750.0,0.003]
[1755870803746,0.02293,112740.0,112730.0,0.03545]
[1755870803945,1.67197547,112740.0,112730.0,0.11591052]
[1755870804143,0.08376,112730.0,112720.0,0.05549683]
[1755870804344,0.75389547,112730.0,112720.0,0.17140735]
[1755870804544,0.75289547,112730.0,112720.0,0.17140735]
[1755870804749,1.00289547,112730.0,112720.0,0.17140735]
[1755870804944,1.00289547,112730.0,112720.0,0.13595735]
[1755870805152,1.00189547,112730.0,112720.0,0.13595735]
[1755870805345,1.00189547,112730.0,112720.0,0.17140735]
[1755870805539,0.00088,112730.0,112720.0,0.25021735]
[1755870805750,0.94078,112730.0,112720.0,0.47855735]
[1755870805945,0.96371,112730.0,112720.0,0.47855735]
[1755870806152,1.91905547,112730.0,112720.0,0.17440735]
[1755870806449,1.78151578,112730.0,112720.0,0.23155735]
[1755870806744,1.78151578,112730.0,112720.0,0.25321735]
[1755870806947,1.78151578,112730.0,112720.0,0.17440735]
[1755870807148,1.78239578,112730.0,112720.0,0.003]
[1755870807452,0.04567,112710.0,112700.0,0.11426]
[1755870807745,0.06195,112730.0,112710.0,0.23017052]
[1755870807949,0.92188,112730.0,112720.0,0.11426]
[1755870808150,1.42288,112730.0,112720.0,0.11426]
[1755870808345,1.44562,112730.0,112720.0,0.48017052]
[1755870808545,1.44362,112730.0,112720.0,0.48017052]
[1755870809051,2.26230578,112730.0,112720.0,0.11591052]
[1755870809438,1.76230578,112730.0,112720.0,0.11591052]
[1755870809653,1.51230578,112730.0,112720.0,0.03545]
[1755870809952,0.61735578,112730.0,112720.0,0.06946]
[1755870810147,0.08476,112730.0,112720.0,0.20851052]
[1755870810354,0.96731,112730.0,112720.0,0.23017052]
[1755870810948,1.00252,112730.0,112720.0,0.23017052]
[1755870811246,0.00388,112730.0,112720.0,0.23017052]
[1755870811452,0.92076,112730.0,112720.0,0.48017052]
[1755870811749,0.74570258,112730.0,112720.0,0.48017052]
[1755870811950,1.01059909,112740.0,112720.0,0.41071052]
[1755870812150,1.53203578,112740.0,112730.0,0.11426]
[1755870812452,0.61435578,112740.0,112730.0,0.08025]
[1755870812654,1.53199578,112740.0,112730.0,0.11426]
[1755870813347,0.9994,112740.0,112730.0,0.11426]
[1755870813553,0.9994,112740.0,112730.0,0.23017052]
[1755870813554,0.94241,112740.0,112730.0,0.23017052]
[1755870813851,1.00136,112740.0,112730.0,0.19616052]
[1755870814247,1.00136,112740.0,112730.0,0.23017052]
[1755870814443,1.25136,112740.0,112730.0,0.15136052]
[1755870814647,1.78495578,112740.0,112730.0,0.11591052]
[1755870815055,1.25232,112740.0,112730.0,0.20851052]
[1755870815354,1.25232,112740.0,112730.0,0.23017052]
[1755870815550,1.21603,112740.0,112730.0,0.23017052]
[1755870815756,0.003,112740.0,112730.0,0.48017052]
[1755870816052,0.94318,112740.0,112730.0,0.48017052]
[1755870816253,0.003,112740.0,112730.0,0.48017052]
[1755870817654,0.02574,112740.0,112730.0,0.48017052]
[1755870817952,0.08476,112740.0,112730.0,0.23017052]
[1755870818348,0.86815578,112740.0,112720.0,0.02166]
[1755870818548,1.53163578,112730.0,112720.0,0.11591052]
[1755870819251,2.22903578,112730.0,112700.0,0.05567]
[1755870819553,0.08176,112720.0,112710.0,0.20851052]
[1755870819851,0.08176,112720.0,112700.0,0.11591052]
[1755870819852,1.05552578,112720.0,112700.0,0.11591052]
[1755870820061,1.53159578,112710.0,112700.0,0.11591052]
[1755870820453,1.53159578,112710.0,112700.0,0.15136052]
[1755870820846,0.02293,112690.0,112680.0,0.03545]
[1755870821046,1.53055578,112690.0,112680.0,0.15136052]
[1755870821561,0.99796,112690.0,112680.0,0.20851052]
[1755870821761,1.24796,112690.0,112680.0,0.15136052]
[1755870821955,1.24796,112690.0,112680.0,0.11591052]
[1755870822258,1.77755578,112690.0,112680.0,0.11591052]
[1755870823154,0.32776,112690.0,112680.0,0.11591052]
[1755870823361,0.5,112690.0,112680.0,0.48017052]
[1755870823560,0.501,112690.0,112680.0,0.48017052]
[1755870823865,0.501,112690.0,112680.0,0.48097052]
[1755870824159,0.502,112690.0,112680.0,1.0135663]
[1755870824550,0.502,112690.0,112680.0,1.1023253]
[1755870824763,0.002,112690.0,112680.0,1.1023253]
[1755870825361,0.002,112690.0,112680.0,0.56972952]
[1755870825855,0.002,112690.0,112680.0,0.48017052]
[1755870826056,0.01974,112690.0,112680.0,0.23017052]
[1755870826257,0.002,112690.0,112680.0,0.23017052]
[1755870826956,0.01974,112690.0,112680.0,0.23017052]
[1755870827260,0.71430737,112690.0,112680.0,0.23017052]
[1755870827562,0.04386,112690.0,112680.0,0.23017052]
[1755870827758,1.91954737,112690.0,112680.0,0.11591052]
[1755870827959,0.01893,112680.0,112670.0,0.06753682]
[1755870828163,0.75003737,112680.0,112670.0,0.11591052]
[1755870829163,1.02300545,112680.0,112670.0,0.11591052]
[1755870829365,0.07959,112670.0,112660.0,0.03166682]
[1755870829565,1.66699737,112670.0,112660.0,0.14757734]
[1755870829758,0.99655,112670.0,112660.0,0.14757734]
[1755870830061,1.66595737,112670.0,112660.0,0.14757734]
[1755870830259,1.52766191,112670.0,112660.0,0.11591052]
[1755870830667,0.07759,112670.0,112660.0,0.11591052]
[1755870830861,1.52774191,112670.0,112660.0,0.15278052]
[1755870831067,0.99455,112670.0,112660.0,0.21093052]
[1755870831267,1.20635,112670.0,112660.0,0.23233052]
[1755870831567,0.0382,112670.0,112660.0,0.51399734]
[1755870831965,0.07759,112670.0,112660.0,0.18644734]
[1755870832162,0.27365,112670.0,112660.0,0.26399734]
[1755870832363,0.99378808,112680.0,112660.0,0.51399734]
[1755870832563,0.03989808,112680.0,112670.0,0.22933052]
[1755870832762,0.02296808,112680.0,112670.0,0.22933052]
[1755870832959,0.53434191,112700.0,112680.0,0.05476]
[1755870833166,0.07759,112700.0,112690.0,0.22933052]
[1755870833467,0.99451,112700.0,112690.0,0.03587]
[1755870833768,0.07759,112690.0,112680.0,0.06923]
[1755870833968,0.61074191,112690.0,112680.0,0.18514052]
[1755870834267,0.09596381,112760.0,112720.0,0.09063]
[1755870834466,0.09596381,112760.0,112740.0,0.05727]
[1755870834467,0.03226,112750.0,112740.0,0.05727]
[1755870834660,0.9491,112750.0,112740.0,0.03587]
[1755870834857,0.9491,112750.0,112740.0,0.08871866]
[1755870835070,0.28226,112750.0,112740.0,0.08871866]
[1755870835272,1.1991,112750.0,112740.0,0.08871866]
[1755870836067,1.6991,112750.0,112740.0,0.03587]
[1755870836270,0.88075486,112750.0,112740.0,0.03587]
[1755870836668,1.79939486,112750.0,112740.0,0.03587]
[1755870837273,0.88275486,112750.0,112740.0,0.03587]
[1755870837473,1.79939486,112750.0,112740.0,0.03587]
[1755870837868,1.79839486,112750.0,112740.0,0.03587]
[1755870838076,1.80039486,112750.0,112740.0,0.03587]
[1755870838773,1.79939486,112750.0,112740.0,0.03587]
[1755870838961,1.80039486,112750.0,112740.0,0.03587]
[1755870839168,1.82261486,112750.0,112720.0,0.58791191]
[1755870839367,0.05775,112740.0,112730.0,0.08871866]
[1755870839768,0.05775,112740.0,112720.0,0.03587]
[1755870839769,0.90383431,112740.0,112720.0,0.03587]
[1755870839969,0.97108,112730.0,112720.0,0.12207866]
[1755870840164,0.97108,112730.0,112720.0,0.14486866]
[1755870840368,1.22108,112730.0,112720.0,0.11011866]
[1755870840571,1.22108,112730.0,112720.0,0.14486866]
[1755870840774,1.22104,112730.0,112720.0,0.14486866]
[1755870841077,1.22104,112730.0,112720.0,0.16626866]
[1755870841477,1.22607,112730.0,112720.0,0.08871866]
[1755870841678,1.22607,112730.0,112720.0,0.05284866]
[1755870842070,0.05472,112720.0,112710.0,0.03587]
[1755870842265,0.05775,112720.0,112710.0,0.08871866]
[1755870842569,0.93531941,112720.0,112710.0,0.05284866]
[1755870842773,0.90305941,112720.0,112700.0,0.03587]
[1755870842970,0.90305941,112720.0,112700.0,0.08871866]
[1755870842971,0.97395,112710.0,112700.0,0.08871866]
[1755870843377,0.97395,112710.0,112700.0,0.11150866]
[1755870843378,0.97088,112710.0,112700.0,0.11150866]
[1755870843579,0.97088,112710.0,112700.0,0.14486866]
[1755870843778,0.05472,112710.0,112700.0,0.14486866]
[1755870843979,0.91612,112710.0,112700.0,0.85879057]
[1755870844281,0.97084,112710.0,112700.0,0.38290866]
[1755870844485,0.97084,112710.0,112700.0,0.41626866]
[1755870844983,0.97484,112710.0,112700.0,0.41626866]
[1755870845177,0.97484,112710.0,112700.0,0.08871866]
[1755870845373,0.05872,112710.0,112700.0,0.08871866]
[1755870845578,1.22783,112710.0,112700.0,0.08871866]
[1755870846283,0.02846,112710.0,112700.0,0.94942057]
[1755870846481,0.003,112710.0,112700.0,1.03896387]
[1755870846683,0.003,112710.0,112700.0,0.95022057]
[1755870846983,0.916,112720.0,112700.0,0.94833367]
[1755870847177,0.94826,112720.0,112710.0,0.11342]
[1755870847377,0.94826,112720.0,112710.0,0.16626866]
[1755870847774,0.00303,112740.0,112710.0,0.85959057]
[1755870847978,0.97072,112730.0,112720.0,0.64657191]
[1755870848181,0.91592,112730.0,112720.0,0.69942057]
[1755870848376,0.91592,112730.0,112720.0,0.94942057]
[1755870848777,0.97064,112730.0,112720.0,0.41626866]
[1755870849585,0.9706,112730.0,112720.0,0.41626866]
[1755870849979,0.05572,112730.0,112720.0,0.38290866]
[1755870850179,0.97156,112730.0,112720.0,0.38290866]
[1755870850582,0.97256,112730.0,112720.0,0.41626866]
[1755870851191,0.97256,112730.0,112720.0,0.38290866]
[1755870851390,0.97244,112730.0,112720.0,0.38290866]
[1755870851689,0.97244,112730.0,112720.0,0.41626866]
[1755870851890,0.97244,112730.0,112720.0,0.39486866]
[1755870852090,0.97344,112730.0,112720.0,0.41626866]
[1755870852584,0.9724,112730.0,112720.0,0.41626866]
[1755870852792,0.9724,112730.0,112720.0,0.38290866]
[1755870852989,0.9724,112730.0,112720.0,0.41626866]
[1755870853286,0.9734,112730.0,112720.0,0.41626866]
[1755870853590,0.9734,112730.0,112720.0,0.38290866]
[1755870853777,0.9734,112730.0,112720.0,0.41626866]
[1755870854187,0.9734,112730.0,112720.0,0.38290866]
[1755870854387,0.9734,112730.0,112710.0,0.67003361]
[1755870854388,0.03529,112720.0,112710.0,0.03587]
[1755870854692,0.72778361,112720.0,112710.0,0.08871866]
[1755870854886,0.05775,112720.0,112710.0,0.08871866]
[1755870855092,0.97778361,112720.0,112710.0,0.08871866]
[1755870855487,0.30775,112720.0,112710.0,0.08871866]
[1755870855686,0.30775,112720.0,112700.0,0.03587]
[1755870855687,0.05775,112710.0,112700.0,0.03587]
[1755870855887,1.64322361,112710.0,112700.0,0.08871866]
[1755870856390,0.97319,112710.0,112700.0,0.08871866]
[1755870856991,1.22419,112710.0,112700.0,0.08871866]
[1755870857193,1.22667,112710.0,112700.0,0.08871866]
[1755870858395,1.89670361,112710.0,112700.0,0.08871866]
[1755870858595,1.89670361,112710.0,112700.0,0.05284866]
[1755870858805,0.06428,112700.0,112690.0,0.03719]
[1755870859091,0.05712,112700.0,112690.0,0.09003866]
[1755870859301,0.05712,112700.0,112690.0,0.16995866]
[1755870859484,0.002,112710.0,112690.0,1.08999227]
[1755870859686,0.97336,112710.0,112700.0,0.11711]
[1755870859894,0.97336,112710.0,112700.0,0.16995866]
[1755870860095,0.97436,112710.0,112700.0,0.16995866]
[1755870860493,0.05912,112710.0,112700.0,0.13513866]
[1755870860693,0.97428,112710.0,112700.0,0.16995866]
[1755870860997,0.97328,112710.0,112700.0,0.16995866]
[1755870861394,0.05812,112710.0,112700.0,0.16995866]
[1755870862101,0.06012,112710.0,112700.0,0.16995866]
[1755870862398,0.9752,112710.0,112700.0,0.16995866]
[1755870863002,0.31012,112710.0,112700.0,0.16995866]
[1755870863196,1.22516,112710.0,112700.0,0.16995866]
[1755870863399,1.22416,112710.0,112700.0,0.13513866]
[1755870863705,1.90216361,112710.0,112700.0,0.09003866]
[1755870864903,0.41219641,112710.0,112700.0,0.05284866]
[1755870865100,1.95544002,112710.0,112690.0,0.03719]
[1755870865303,0.71753361,112700.0,112690.0,0.01784866]
[1755870865504,0.02939,112690.0,112680.0,0.03719]
[1755870865800,0.02939,112690.0,112680.0,0.05503866]
[1755870865801,1.63257976,112690.0,112680.0,0.05503866]
[1755870865996,1.73031124,112690.0,112680.0,0.05503866]
[1755870866192,1.74842124,112690.0,112680.0,0.05503866]
[1755870866394,1.74842065,112690.0,112680.0,0.05503866]
[1755870866593,1.74842065,112690.0,112680.0,0.01784866]
[1755870866804,0.03816,112670.0,112660.0,0.03719]
[1755870867000,1.65064917,112670.0,112660.0,0.03719]
[1755870867206,1.32837344,112670.0,112660.0,0.01784866]
[1755870867505,1.32829344,112670.0,112660.0,0.01784866]
[1755870867800,1.99832705,112670.0,112660.0,0.01784866]
[1755870868099,0.41357344,112670.0,112660.0,0.01784866]
[1755870868299,0.91357344,112670.0,112660.0,0.01784866]
[1755870868500,0.68643031,112670.0,112660.0,0.09776866]
[1755870868706,1.49638243,112670.0,112660.0,0.09776866]
[1755870868899,1.50038243,112670.0,112660.0,0.09776866]
[1755870869096,1.50038243,112670.0,112660.0,0.13495866]
[1755870869503,0.65815486,112670.0,112660.0,0.13495866]
[1755870869702,1.07283486,112670.0,112660.0,0.11711]
[1755870869905,1.07083486,112670.0,112660.0,0.11711]
[1755870870301,1.07283486,112670.0,112660.0,0.08229]
[1755870870501,1.09765486,112670.0,112660.0,0.11711]
[1755870870901,1.09765486,112670.0,112660.0,0.09383]
[1755870871102,0.18297486,112670.0,112660.0,0.09383]
[1755870871302,1.07283486,112670.0,112660.0,0.11711]
[1755870871500,0.15815486,112670.0,112660.0,0.80499227]
[1755870871704,0.15478486,112670.0,112660.0,0.80499227]
[1755870871905,0.11662486,112670.0,112660.0,1.05499227]
[1755870872116,0.07545243,112670.0,112660.0,1.05499227]
[1755870872305,0.07565243,112670.0,112660.0,1.05519227]
[1755870873212,0.09139243,112670.0,112660.0,1.05519227]
[1755870873514,0.0032,112670.0,112660.0,1.05519227]
[1755870874410,0.0032,112670.0,112660.0,1.14476707]
[1755870874616,0.0032,112670.0,112660.0,1.05599227]
[1755870875404,0.71376361,112670.0,112660.0,0.10033866]
[1755870875718,2.01567763,112670.0,112660.0,0.01804866]
[1755870876316,1.10131763,112670.0,112660.0,0.01804866]
[1755870876505,2.01559763,112670.0,112660.0,0.01804866]
[1755870876707,1.84556402,112670.0,112660.0,0.01804866]
[1755870876908,2.51559763,112670.0,112660.0,0.01804866]
[1755870877317,1.84476402,112670.0,112660.0,0.05523866]
[1755870877511,0.83770293,112670.0,112660.0,0.13515866]
[1755870877714,0.61589035,112670.0,112660.0,1.05519227]
[1755870877908,0.63163035,112670.0,112660.0,0.38515866]
[1755870878112,1.18072289,112670.0,112660.0,0.01804866]
[1755870878416,1.18052289,112670.0,112640.0,0.0581]
[1755870878715,0.97935,112660.0,112650.0,0.01784866]
[1755870878912,0.99898087,112660.0,112650.0,0.01784866]
[1755870879104,1.1000498,112660.0,112650.0,0.01784866]
[1755870879310,1.1000098,112660.0,112650.0,0.05503866]
[1755870879517,0.16621893,112660.0,112650.0,0.01784866]
[1755870879717,0.83625254,112660.0,112650.0,0.01784866]
[1755870880110,1.08725254,112660.0,112650.0,0.01784866]
[1755870880414,0.01791,112650.0,112640.0,0.03719]
[1755870880711,1.64922361,112650.0,112640.0,0.05503866]
[1755870881117,1.64922361,112650.0,112640.0,0.01784866]
[1755870881719,1.64922361,112650.0,112640.0,0.05503866]
[1755870881914,0.97919,112650.0,112640.0,0.05523866]
[1755870882115,1.64922361,112650.0,112640.0,0.05523866]
[1755870882416,0.06515,112650.0,112640.0,0.05623866]
[1755870882718,0.98011,112650.0,112640.0,0.05523866]
[1755870883219,1.65114361,112650.0,112640.0,0.05523866]
[1755870883416,0.04233,112650.0,112640.0,0.13515866]
[1755870883911,0.04233,112650.0,112640.0,0.05523866]
[1755870883912,0.73718361,112650.0,112640.0,0.05523866]
[1755870884214,0.06715,112650.0,112640.0,0.11187866]
[1755870884414,0.002,112650.0,112640.0,0.80599227]
[1755870884621,0.002,112650.0,112640.0,1.05599227]
[1755870884809,0.002,112650.0,112640.0,1.05519227]
[1755870885011,0.002,112650.0,112640.0,1.05599227]
[1755870885515,0.002,112650.0,112640.0,1.05519227]
[1755870885719,0.71880997,112680.0,112670.0,0.02182]
[1755870885720,0.02395636,112680.0,112670.0,0.02182]
[1755870885912,0.01963392,112680.0,112670.0,0.78814361]
[1755870886417,0.01963392,112680.0,112670.0,1.03814361]
[1755870886721,0.4466,112690.0,112680.0,0.11711]
[1755870887018,0.4466,112690.0,112680.0,0.78734361]
[1755870887219,0.4466,112690.0,112680.0,1.03734361]
[1755870887613,0.47921,112690.0,112680.0,0.36731]
[1755870887820,0.4466,112690.0,112680.0,1.03734361]
[1755870888120,0.50182,112690.0,112680.0,1.03734361]
[1755870888418,0.50582,112690.0,112680.0,1.03734361]
[1755870889321,0.005,112690.0,112680.0,1.03734361]
[1755870889515,0.05722,112690.0,112680.0,1.03734361]
[1755870890809,0.002,112690.0,112680.0,1.03734361]
[1755870891015,0.001,112690.0,112680.0,0.36731]
[1755870891217,0.001,112690.0,112680.0,1.03734361]
[1755870891724,0.05622,112690.0,112680.0,0.36731]
[1755870892029,0.001,112690.0,112680.0,0.36731]
[1755870892614,0.001,112690.0,112680.0,1.03734361]
[1755870892817,0.001,112690.0,112680.0,1.03834361]
[1755870893018,0.12854456,112700.0,112680.0,0.94305361]
[1755870893224,0.84770817,112700.0,112690.0,0.03773]
[1755870893426,0.84770817,112700.0,112690.0,0.06043]
[1755870893627,0.84770817,112700.0,112690.0,0.09519]
[1755870893924,0.15115456,112700.0,112690.0,0.11875]
[1755870894814,0.15215456,112700.0,112690.0,0.11875]
[1755870895014,0.15427456,112700.0,112690.0,0.11875]
[1755870896224,0.84870817,112700.0,112690.0,0.03793]
[1755870896413,0.42867456,112700.0,112690.0,0.03793]
[1755870896613,1.19347085,112700.0,112690.0,0.0002]
[1755870896819,1.19427085,112700.0,112690.0,0.00024]
[1755870897622,1.02423724,112700.0,112690.0,0.00024]
[1755870897825,1.69527085,112700.0,112690.0,0.00024]
[1755870898826,1.71482703,112700.0,112690.0,0.00024]
[1755870900023,0.08174,112680.0,112670.0,0.03773]
[1755870900219,0.02473,112660.0,112650.0,0.10059347]
[1755870900426,0.07689618,112660.0,112650.0,0.10059347]
[1755870900620,0.00212,112680.0,112650.0,0.77062708]
[1755870900824,0.75201361,112680.0,112670.0,0.02356]
[1755870901325,0.08198,112670.0,112660.0,0.08082]
[1755870901521,0.09523872,112680.0,112660.0,0.75085361]
[1755870901725,0.05734,112680.0,112670.0,0.08082]
[1755870902030,0.82261233,112680.0,112670.0,0.08182]
[1755870902223,0.82261233,112680.0,112670.0,0.11955]
[1755870902420,0.82261233,112680.0,112670.0,0.11855]
[1755870902726,0.84725233,112680.0,112670.0,0.03873]
[1755870902923,1.09725233,112680.0,112670.0,0.001]
[1755870903125,2.00953233,112680.0,112670.0,0.001]
[1755870903326,2.50953233,112680.0,112670.0,0.0012]
[1755870904128,2.50953233,112680.0,112670.0,0.00124]
[1755870904328,2.50953233,112680.0,112670.0,0.03997]
[1755870904625,1.59725233,112680.0,112670.0,0.03997]
[1755870905021,2.50937233,112680.0,112670.0,0.00224]
[1755870905626,2.51017233,112680.0,112670.0,0.00224]
[1755870905933,0.08422,112660.0,112650.0,0.10059347]
[1755870906131,0.75425361,112660.0,112650.0,0.10059347]
[1755870907327,1.10059169,112660.0,112650.0,4e-05]
[1755870907732,2.01251169,112660.0,112650.0,0.03777]
[1755870908128,1.10059169,112660.0,112650.0,0.00204]
[1755870908334,2.51247169,112660.0,112650.0,0.03977]
[1755870908833,2.51247169,112660.0,112650.0,0.03777]
[1755870909032,2.51247169,112660.0,112650.0,0.03797]
[1755870909228,2.51247169,112660.0,112650.0,0.00624]
[1755870909429,2.45086169,112660.0,112630.0,0.13590069]
[1755870909727,2.45086169,112660.0,112630.0,0.15840069]
[1755870909728,0.75325361,112640.0,112630.0,0.15840069]
[1755870910326,0.75325361,112640.0,112630.0,0.10114069]
[1755870910531,1.00325361,112640.0,112630.0,0.0578]
[1755870910737,1.10142548,112640.0,112630.0,0.0578]
[1755870911035,2.01310548,112640.0,112630.0,0.0578]
[1755870911227,2.01310548,112640.0,112630.0,0.0598]
[1755870911627,2.01310548,112640.0,112630.0,0.02007]
[1755870911827,1.34407187,112640.0,112630.0,0.02207]
[1755870912027,1.34407187,112640.0,112630.0,0.02511]
[1755870912028,2.01410548,112640.0,112630.0,0.02511]
[1755870912227,1.60242548,112640.0,112630.0,0.02311]
[1755870912427,2.51398548,112640.0,112630.0,0.02311]
[1755870912627,2.51398548,112640.0,112630.0,0.02331]
[1755870912831,0.07631,112630.0,112610.0,0.05832]
[1755870913035,2.44951107,112640.0,112600.0,0.07778744]
[1755870913036,0.74534361,112620.0,112600.0,0.07778744]
[1755870913232,0.75965361,112610.0,112600.0,0.10028744]
[1755870914129,0.75965361,112610.0,112590.0,0.08082]
[1755870914130,0.0875,112600.0,112590.0,0.08082]
[1755870914434,0.0875,112600.0,112570.0,0.05832]
[1755870914435,0.08962,112590.0,112570.0,0.05832]
[1755870914735,0.71546361,112580.0,112570.0,0.08082]
[1755870914936,0.04943,112580.0,112570.0,0.08082]
[1755870915131,0.04943,112580.0,112570.0,0.11855]
[1755870915443,0.1149402,112580.0,112570.0,0.11855]
[1755870915736,0.1149402,112580.0,112570.0,0.11859]
[1755870915935,0.0746302,112580.0,112570.0,0.11879]
[1755870916131,0.0725102,112580.0,112570.0,0.78882361]
[1755870916335,0.08262,112600.0,112590.0,0.11855]
[1755870916525,0.0805,112610.0,112600.0,0.11855]
[1755870916935,0.0805,112610.0,112600.0,0.03773]
[1755870917137,0.07568,112600.0,112590.0,0.09543]
[1755870917529,0.07568,112600.0,112590.0,0.11768]
[1755870918241,0.0393,112600.0,112590.0,0.11768]
[1755870918435,0.06899308,112600.0,112590.0,0.11868]
[1755870918735,0.03120308,112600.0,112590.0,0.11872]
[1755870919035,0.03169308,112600.0,112590.0,0.36872]
[1755870919239,0.008,112600.0,112590.0,1.03955361]
[1755870919631,0.008,112600.0,112590.0,1.03875361]
[1755870919929,0.008,112600.0,112590.0,1.03895361]
[1755870920130,0.008,112600.0,112590.0,0.36892]
[1755870920528,0.008,112600.0,112590.0,1.03895361]
[1755870920731,0.008,112600.0,112590.0,0.11892]
[1755870921133,0.0296,112600.0,112590.0,0.11892]
[1755870921328,0.75522361,112600.0,112590.0,0.08416]
[1755870921533,0.08519,112600.0,112590.0,0.0606]
[1755870921838,1.00522361,112600.0,112590.0,0.03835]
[1755870922044,1.00522361,112600.0,112590.0,0.00124]
[1755870922635,0.33519,112600.0,112590.0,0.09389]
[1755870922935,0.33519,112600.0,112590.0,0.1159]
[1755870923141,0.29881,112600.0,112590.0,0.1159]
[1755870923640,0.33519,112600.0,112590.0,0.1159]
[1755870923838,0.33519,112600.0,112590.0,0.03835]
[1755870924043,1.10486373,112600.0,112590.0,0.00124]
[1755870924637,1.60486373,112600.0,112590.0,0.00124]
[1755870924936,0.93483012,112600.0,112590.0,0.00124]
[1755870925335,1.60486373,112600.0,112590.0,0.00124]
[1755870925637,0.68483012,112600.0,112590.0,0.1159]
[1755870925829,1.60486373,112600.0,112590.0,0.00124]
[1755870927331,0.93483012,112600.0,112590.0,0.00124]
[1755870927644,1.60486373,112600.0,112590.0,0.00124]
[1755870928345,0.0216,112580.0,112570.0,0.05916]
[1755870928541,0.07583,112580.0,112570.0,0.1147]
[1755870928837,0.07583,112580.0,112570.0,0.08141]
[1755870929039,0.07583,112580.0,112570.0,0.1147]
[1755870929638,0.03945,112580.0,112570.0,0.1147]
[1755870930145,1.61709361,112590.0,112570.0,0.1147]
[1755870930445,0.17887081,112590.0,112580.0,0.11466]
[1755870930633,1.05305081,112590.0,112580.0,0.11466]
[1755870930837,0.14249081,112590.0,112580.0,0.11466]
[1755870931237,0.84890442,112590.0,112570.0,0.00104]
[1755870931441,0.74586361,112580.0,112570.0,0.03715]
[1755870931644,0.74586361,112580.0,112570.0,0.1159]